bitfinex/quotes_SOLUSD_20250919
["timestamp","ask_amount","ask_price","bid_price","bid_amount"]
[1758290916393,0.81,242.59,242.58,31.92]
[1758290916791,0.1,242.59,242.58,31.92]
[1758290918210,0.81,242.59,242.58,31.92]
[1758290918608,1.63444827,242.59,242.58,31.92]
[1758290918803,0.81,242.59,242.58,31.92]
[1758290920618,0.1,242.59,242.58,31.92]
[1758290921116,0.1,242.59,242.54,0.67]
[1758290921312,0.1,242.59,242.55,36.71284891]
[1758290921516,0.1,242.59,242.55,32.59]
[1758290921824,0.81,242.59,242.55,32.59]
[1758290922423,0.1,242.59,242.55,32.59]
[1758290923126,1.63443838,242.59,242.55,31.92]
[1758290923620,0.92443838,242.59,242.55,32.59]
[1758290923823,1.63443838,242.59,242.55,32.59]
[1758290924714,0.71,242.58,242.56,31.92]
[1758290925027,0.92443838,242.59,242.56,31.92]
[1758290925228,1.63443838,242.59,242.56,31.92]
[1758290925526,0.81,242.59,242.56,31.92]
[1758290925727,0.1,242.59,242.56,31.92]
[1758290926302,0.1,242.59,242.56,32.59]
[1758290928758,0.1,242.59,242.56,31.92]
[1758290929029,0.1,242.59,242.56,32.59]
[1758290929330,0.1,242.59,242.56,31.92]
[1758290929521,1.63444109,242.59,242.56,31.92]
[1758290930427,0.1,242.59,242.56,32.59]
[1758290931135,1.63443987,242.59,242.57,31.9]
[1758290931343,1.63443987,242.59,242.56,26.0]
[1758290931519,0.92443987,242.59,242.58,31.9]
[1758290931700,0.92443987,242.59,242.56,26.0]
[1758290932028,1.63443987,242.59,242.55,0.95432314]
[1758290932209,1.63443987,242.59,242.56,31.9]
[1758290932402,0.92443987,242.59,242.56,0.67]
[1758290932615,0.92443987,242.59,242.54,0.28432314]
[1758290932833,1.52231031,242.57,242.53,2.06078238]
[1758290933004,0.71,242.56,242.54,31.9]
[1758290933200,1.53457225,242.55,242.54,31.9]
[1758290933399,1.53457225,242.55,242.44,2.82140863]
[1758290933618,1.52231031,242.52,242.45,31.9]
[1758290933804,0.71,242.51,242.45,31.9]
[1758290934401,0.71,242.51,242.45,32.57]
[1758290934730,0.71,242.5,242.45,31.9]
[1758290934932,0.71,242.49,242.45,31.9]
[1758290935230,0.82470825,242.51,242.46,0.67]
[1758290935412,1.48470825,242.51,242.46,0.67]
[1758290935614,0.66,242.5,242.46,0.67]
[1758290936149,0.82470825,242.51,242.46,0.67]
[1758290936309,0.82470825,242.51,242.46,0.72]
[1758290936511,1.48470825,242.51,242.46,0.72]
[1758290936824,0.66,242.55,242.47,0.72]
[1758290937015,3.21333613,242.55,242.47,0.72]
[1758290937331,0.82464025,242.53,242.47,0.72]
[1758290937517,1.48464025,242.53,242.47,0.72]
[1758290939014,0.82464025,242.53,242.47,0.72]
[1758290939841,0.82460609,242.55,242.48,0.28432314]
[1758290940009,0.82460609,242.55,242.49,32.62]
[1758290940217,3.68345027,242.59,242.5,1.00432314]
[1758290940218,2.16113996,242.59,242.5,1.00432314]
[1758290940431,0.82450198,242.58,242.51,0.72]
[1758290940630,0.9244377,242.59,242.51,0.72]
[1758290940834,0.1,242.59,242.53,0.28432314]
[1758290941031,0.1,242.59,242.54,32.62]
[1758290941231,0.1,242.59,242.55,0.72]
[1758290941423,0.1,242.59,242.56,0.72]
[1758290942521,0.72,242.58,242.52,1.00432314]
[1758290942717,0.72,242.58,242.53,31.9]
[1758290942940,0.82450426,242.57,242.53,32.62]
[1758290943326,0.82447164,242.58,242.54,0.72]
[1758290943524,0.82447164,242.58,242.53,31.9]
[1758290943726,0.72,242.57,242.54,31.9]
[1758290944030,2.34678195,242.58,242.54,31.9]
[1758290944214,0.72,242.56,242.54,31.9]
[1758290944617,1.54455925,242.56,242.54,31.9]
[1758290944853,0.82447027,242.58,242.54,31.9]
[1758290945033,0.72,242.57,242.52,0.72]
[1758290945348,0.72,242.57,242.53,31.9]
[1758290945851,4.40795627,242.58,242.53,31.9]
[1758290946017,2.24231031,242.56,242.48,0.72]
[1758290946216,1.52231031,242.54,242.48,0.72]
[1758290946547,1.52231031,242.54,242.49,31.9]
[1758290946719,3.60624087,242.53,242.49,31.9]
[1758290947040,0.72,242.52,242.49,31.9]
[1758290947743,3.60624087,242.53,242.49,31.9]
[1758290947942,0.72,242.52,242.49,31.9]
[1758290948116,0.82470825,242.51,242.49,31.9]
[1758290948545,0.82470825,242.51,242.49,32.62]
[1758290948744,0.82470825,242.51,242.49,31.9]
[1758290949250,0.82470825,242.51,242.47,0.72]
[1758290949449,2.24231031,242.5,242.43,0.72]
[1758290949624,1.52231031,242.49,242.44,31.9]
[1758290949826,0.72,242.48,242.44,31.9]
[1758290950135,0.72,242.48,242.4,2.87276629]
[1758290950136,2.24231031,242.47,242.4,2.87276629]
[1758290950326,2.24231031,242.46,242.43,31.9]
[1758290950650,1.52231031,242.44,242.35,0.72]
[1758290950953,1.52231031,242.39,242.33,0.72]
[1758290951326,2.24231031,242.4,242.33,0.72]
[1758290952040,0.72,242.42,242.33,0.72]
[1758290952248,1.52231031,242.41,242.33,0.72]
[1758290953176,2.24231031,242.41,242.33,0.72]
[1758290953466,1.52231031,242.4,242.33,0.72]
[1758290953653,0.72,242.39,242.31,40.5401564]
[1758290953836,1.52231031,242.37,242.31,8.6401564]
[1758290954037,0.82521868,242.36,242.31,40.5401564]
[1758290954254,3.06752899,242.36,242.31,41.2601564]
[1758290954458,0.72,242.35,242.31,40.5401564]
[1758290954858,0.72,242.34,242.31,40.5401564]
[1758290955372,2.24231031,242.34,242.31,40.5401564]
[1758290955538,1.52231031,242.32,242.31,8.6401564]
[1758290955946,2.24231031,242.32,242.31,8.6401564]
[1758290956146,3.06766521,242.32,242.31,8.6401564]
[1758290956468,1.5453549,242.32,242.31,8.6401564]
[1758290956657,3.06766521,242.32,242.31,8.6401564]
[1758290956853,1.5453549,242.32,242.31,8.6401564]
[1758290957073,2.34766521,242.32,242.31,8.6401564]
[1758290957571,0.8253549,242.32,242.31,8.6401564]
[1758290957773,3.93054684,242.32,242.31,8.6401564]
[1758290959251,1.5453549,242.32,242.31,8.6401564]
[1758290959778,3.93054684,242.32,242.31,8.6401564]
[1758290963291,13.73775558,242.31,242.29,1e-08]
[1758290963576,148.12294752,242.3,242.29,1e-08]
[1758290963777,180.76294752,242.3,242.29,1e-08]
[1758290964682,149.66837054,242.3,242.29,1e-08]
[1758290965061,136.12138356,242.3,242.29,1e-08]
[1758290965370,135.40138356,242.3,242.29,1e-08]
[1758290967074,135.40138356,242.3,242.29,0.72000001]
[1758290967663,134.57596054,242.3,242.29,0.72000001]
[1758290968285,135.40138356,242.3,242.29,1e-08]
[1758290969383,137.7865755,242.3,242.29,1e-08]
[1758290969764,135.40138356,242.3,242.29,1e-08]
[1758290970478,135.40138356,242.3,242.29,0.72000001]
[1758290971568,135.40138356,242.3,242.29,1e-08]
[1758290972871,134.57596054,242.3,242.29,1e-08]
[1758290974771,134.57596054,242.3,242.29,0.72000001]
[1758290976889,135.40138356,242.3,242.29,0.72000001]
[1758290977190,135.40138356,242.3,242.29,1e-08]
[1758290978894,138.4465755,242.3,242.29,1e-08]
[1758290979585,170.3665755,242.3,242.29,1e-08]
[1758290982263,184.10433108,242.3,242.29,1e-08]
[1758290982486,49.71913914,242.3,242.29,1e-08]
[1758290982698,52.10433108,242.3,242.29,1e-08]
[1758290985299,3.40138356,242.3,242.29,1e-08]
[1758290985471,35.32138356,242.3,242.29,1e-08]
[1758290985669,5.7865755,242.3,242.29,1e-08]
[1758290985904,3.40138356,242.3,242.29,0.72000001]
[1758290988298,2.57596054,242.3,242.29,0.72000001]
[1758290989188,3.40138356,242.3,242.29,0.72000001]
[1758290989497,3.40138356,242.3,242.29,1e-08]
[1758290989900,5.7865755,242.3,242.29,1e-08]
[1758290991504,2.57596054,242.3,242.29,0.72000001]
[1758290991700,3.40138356,242.3,242.29,1e-08]
[1758290991909,6.4465755,242.3,242.29,1e-08]
[1758290995592,3.40138356,242.3,242.29,1e-08]
[1758290998491,6.4665755,242.3,242.29,1e-08]
[1758291000200,4.08138356,242.3,242.29,1e-08]
[1758291000399,6.4665755,242.3,242.29,1e-08]
[1758291000698,5.7865755,242.3,242.29,1e-08]
[1758291000897,3.40138356,242.3,242.29,1e-08]
[1758291001114,3.40138356,242.3,242.29,0.69000001]
[1758291001886,2.57596054,242.3,242.29,0.69000001]
[1758291002504,2.57596054,242.3,242.29,5.10160863]
[1758291004101,2.57596054,242.3,242.29,26.97432315]
[1758291004905,2.57596054,242.3,242.29,26.69000001]
[1758291005423,3.40138356,242.3,242.29,1e-08]
[1758291007096,3.40138356,242.3,242.29,0.69000001]
[1758291007302,2.57596054,242.3,242.29,0.69000001]
[1758291007802,2.88854328,242.34,242.29,0.69000001]
[1758291007997,2.38519194,242.33,242.29,1e-08]
[1758291008327,2.38519194,242.32,242.29,1e-08]
[1758291008726,3.04519194,242.32,242.29,1e-08]
[1758291008933,2.38519194,242.3,242.29,1e-08]
[1758291009300,3.04519194,242.3,242.29,1e-08]
[1758291009710,132.0,242.33,242.29,1e-08]
[1758291009711,2.38519194,242.31,242.29,1e-08]
[1758291009913,0.82542302,242.3,242.29,1e-08]
[1758291010132,0.82538893,242.32,242.3,0.69]
[1758291010339,0.82538893,242.32,242.29,1e-08]
[1758291010503,0.82538893,242.32,242.31,0.69]
[1758291010697,0.82538893,242.32,242.29,1e-08]
[1758291011128,0.82538893,242.32,242.3,0.69]
[1758291011328,0.82538893,242.32,242.31,0.69]
[1758291011807,0.82538893,242.32,242.29,1e-08]
[1758291012127,0.82538893,242.32,242.3,0.69]
[1758291012830,0.82538893,242.32,242.29,1e-08]
[1758291013231,0.82538893,242.32,242.3,0.69]
[1758291014129,0.82538893,242.32,242.29,1e-08]
[1758291014917,3.04519194,242.31,242.29,1e-08]
[1758291015518,0.66,242.31,242.29,1e-08]
[1758291015833,0.66,242.3,242.29,1e-08]
[1758291016213,3.04519194,242.3,242.29,1e-08]
[1758291016739,3.87061496,242.3,242.29,1e-08]
[1758291018417,3.21061496,242.3,242.29,1e-08]
[1758291018919,0.82542302,242.3,242.29,1e-08]
[1758291019435,3.87061496,242.3,242.29,1e-08]
[1758291019825,2.35216247,242.3,242.29,1e-08]
[1758291020208,3.01216247,242.3,242.29,1e-08]
[1758291020525,2.35216247,242.3,242.29,1e-08]
[1758291020929,3.01216247,242.3,242.29,1e-08]
[1758291022527,16.60775648,242.3,242.29,1e-08]
[1758291022715,19.52734438,242.3,242.29,1e-08]
[1758291023318,20.55942047,242.3,242.29,1e-08]
[1758291024417,39.59559401,242.26,242.21,0.1]
[1758291024619,1.52673945,242.22,242.21,0.1]
[1758291025129,2.35243509,242.22,242.21,0.1]
[1758291025523,0.82569564,242.22,242.21,0.1]
[1758291026131,0.82569564,242.22,242.21,0.82]
[1758291026924,2.06408445,242.24,242.21,0.82]
[1758291027126,2.06408445,242.24,242.21,0.1]
[1758291027448,3.5908239,242.24,242.21,0.1]
[1758291028215,3.5908239,242.24,242.21,0.82]
[1758291028422,3.5908239,242.24,242.21,0.1]
[1758291028851,2.06408445,242.24,242.21,0.1]
[1758291029056,1.52673945,242.23,242.21,0.1]
[1758291029245,1.52673945,242.22,242.21,0.1]
[1758291029444,2.19673945,242.22,242.21,0.1]
[1758291029643,15.79233346,242.22,242.21,0.1]
[1758291029829,18.56755441,242.22,242.21,0.1]
[1758291030429,18.56755441,242.22,242.21,1e-08]
[1758291030726,26.0,242.19,242.18,1e-08]
[1758291030925,2.35250328,242.2,242.18,0.72000001]
[1758291031139,0.82576383,242.2,242.18,0.72000001]
[1758291031537,0.82576383,242.2,242.18,1e-08]
[1758291031943,0.82576383,242.2,242.19,0.72]
[1758291033050,3.2948186,242.32,242.19,0.72]
[1758291033051,0.82565671,242.24,242.19,0.72]
[1758291033356,4.23619985,242.25,242.19,0.72]
[1758291033524,4.23619985,242.25,242.19,4.84894448]
[1758291033732,5.06179595,242.25,242.2,0.72]
[1758291033956,5.06179595,242.25,242.18,1e-08]
[1758291034256,5.06179595,242.25,242.21,0.72]
[1758291034448,4.23619985,242.25,242.22,0.72]
[1758291034647,4.23619985,242.25,242.23,0.72]
[1758291035024,4.23619985,242.25,242.24,0.72]
[1758291036025,0.82532084,242.33,242.24,0.72]
[1758291036446,0.82527971,242.35,242.24,0.72]
[1758291036935,3.59573614,242.37,242.26,0.28432314]
[1758291037131,10.60860013,242.38,242.28,0.28432314]
[1758291037332,10.60860013,242.38,242.29,0.72]
[1758291037734,10.60860013,242.38,242.32,0.28432314]
[1758291037934,10.60860013,242.38,242.33,0.72]
[1758291038928,10.60860013,242.38,242.34,0.28432314]
[1758291039148,10.60860013,242.38,242.35,0.72]
[1758291039359,10.60860013,242.38,242.36,0.72]
[1758291039566,10.60860013,242.38,242.37,0.72]
[1758291040073,10.60860013,242.38,242.34,0.28432314]
[1758291040253,10.60860013,242.38,242.28,0.72]
[1758291040254,5.09598832,242.37,242.28,0.72]
[1758291040580,3.60080369,242.35,242.29,26.0]
[1758291040934,3.60080369,242.35,242.3,0.72]
[1758291041172,3.60080369,242.34,242.28,0.72]
[1758291041475,3.60080369,242.35,242.28,0.72]
[1758291041846,4.42598832,242.37,242.28,0.72]
[1758291042059,14.20940382,242.38,242.29,0.14216157]
[1758291042271,10.60860013,242.38,242.3,0.72]
[1758291042590,11.43375818,242.38,242.3,0.72]
[1758291043163,10.60860013,242.38,242.3,0.72]
[1758291043360,10.60860013,242.38,242.32,0.28432314]
[1758291043558,10.60860013,242.38,242.33,0.72]
[1758291043752,10.60860013,242.38,242.34,0.72]
[1758291043961,10.60860013,242.38,242.35,0.72]
[1758291045369,11.43375465,242.38,242.35,0.72]
[1758291045548,11.43375465,242.38,242.33,0.72]
[1758291045750,11.43375465,242.38,242.34,0.72]
[1758291046165,10.60860013,242.38,242.34,0.72]
[1758291046370,10.60860013,242.38,242.35,0.72]
[1758291046875,11.43375785,242.38,242.35,0.72]
[1758291047351,11.43375785,242.38,242.32,0.28432314]
[1758291047352,11.43375785,242.38,242.33,0.14216157]
[1758291047547,11.43375785,242.38,242.34,0.72]
[1758291047742,11.43375785,242.38,242.33,0.14216157]
[1758291047944,4.27080369,242.37,242.31,32.32432314]
[1758291048358,0.82521868,242.36,242.31,32.32432314]
[1758291048561,0.82521868,242.36,242.31,33.04432314]
[1758291048760,1.49521868,242.36,242.31,33.04432314]
[1758291049163,5.09602237,242.36,242.31,32.04]
[1758291049370,5.09602237,242.36,242.3,26.0]
[1758291049371,4.42602237,242.36,242.3,0.14216157]
[1758291049672,0.67,242.35,242.3,0.14216157]
[1758291050182,0.67,242.35,242.28,32.76]
[1758291050347,1.49528678,242.34,242.28,32.76]
[1758291051078,1.49528678,242.34,242.28,0.86216157]
[1758291051884,3.60080369,242.33,242.26,26.72]
[1758291052096,4.27080369,242.33,242.26,32.74]
[1758291052393,4.42619265,242.31,242.25,32.04]
[1758291052560,6.48966506,242.31,242.25,32.04]
[1758291052764,4.27080369,242.3,242.24,0.72]
[1758291053589,4.27080369,242.3,242.23,32.04]
[1758291054063,0.67,242.3,242.24,0.72]
[1758291054683,0.82545709,242.29,242.23,32.04]
[1758291054857,0.82545709,242.29,242.23,32.76]
[1758291055682,0.82545709,242.29,242.23,32.04]
[1758291055984,0.66,242.28,242.21,0.99432314]
[1758291056158,0.66,242.28,242.21,33.01432314]
[1758291056353,6.48990352,242.29,242.22,0.71]
[1758291056698,0.82545709,242.29,242.22,0.71]
[1758291056883,0.82541634,242.31,242.23,0.28432314]
[1758291057180,0.66,242.35,242.25,0.42648471]
[1758291057484,0.82525273,242.35,242.26,0.71]
[1758291057686,0.82525273,242.35,242.28,0.28432314]
[1758291057887,0.82525273,242.35,242.29,0.68]
[1758291058683,0.82525273,242.35,242.3,0.28432314]
[1758291058859,132.0,242.36,242.31,0.68]
[1758291059058,132.8252261,242.36,242.32,0.68]
[1758291059261,132.8252261,242.36,242.33,0.68]
[1758291059462,0.92512203,242.39,242.34,0.96432314]
[1758291059787,0.92512203,242.39,242.35,0.68]
[1758291060767,0.1,242.39,242.35,0.68]
[1758291061388,0.92511689,242.39,242.35,0.68]
[1758291061769,0.92511689,242.39,242.33,32.02]
[1758291061970,1.59511689,242.39,242.33,32.02]
[1758291062588,2.45033331,242.39,242.3,26.0]
[1758291062794,1.52521642,242.34,242.3,32.02]
[1758291062965,1.52521642,242.32,242.3,32.02]
[1758291063283,0.67,242.34,242.3,32.02]
[1758291063787,0.67,242.33,242.3,32.02]
[1758291064474,0.8253549,242.32,242.27,0.68]
[1758291064787,0.67,242.31,242.24,0.68]
[1758291064983,0.67,242.31,242.25,26.0]
[1758291065561,0.67,242.31,242.17,12.58640044]
[1758291065562,1.52521642,242.26,242.2,0.68]
[1758291065866,1.52521642,242.23,242.17,2.94328829]
[1758291066186,2.19521642,242.22,242.18,32.02000001]
[1758291066485,0.82572973,242.21,242.18,32.70000001]
[1758291066986,2.35094615,242.21,242.18,32.02000001]
[1758291067187,4.41527049,242.21,242.18,32.02000001]
[1758291067397,2.35094615,242.21,242.18,32.02000001]
[1758291067707,0.82572973,242.21,242.18,32.02000001]
[1758291068285,0.82572973,242.21,242.18,32.70000001]
[1758291068670,0.82566156,242.23,242.18,32.70000001]
[1758291069462,0.82566156,242.23,242.19,0.68]
[1758291070293,26.0,242.27,242.2,0.68]
[1758291070595,6.49665397,242.27,242.2,0.68]
[1758291070774,3.60731563,242.24,242.18,32.02000001]
[1758291071367,3.60731563,242.24,242.18,32.70000001]
[1758291072801,5.10297719,242.23,242.18,32.02000001]
[1758291073089,5.10297719,242.23,242.18,1e-08]
[1758291073090,4.27731563,242.22,242.18,1e-08]
[1758291073793,3.60731563,242.22,242.18,1e-08]
[1758291074090,4.27731563,242.22,242.18,1e-08]
[1758291074589,2.88981546,242.23,242.19,0.68]
[1758291074980,4.27731563,242.22,242.18,1e-08]
[1758291075374,3.60731563,242.2,242.18,1e-08]
[1758291075572,0.67,242.21,242.18,1e-08]
[1758291075795,3.60731563,242.21,242.18,1e-08]
[1758291076294,135.60731563,242.22,242.18,1e-08]
[1758291076679,3.60731563,242.2,242.18,1e-08]
[1758291077211,3.56005407,242.21,242.18,1e-08]
[1758291077212,7.1673697,242.21,242.18,1e-08]
[1758291077605,2.89005407,242.21,242.18,1e-08]
[1758291078512,0.67,242.2,242.18,1e-08]
[1758291078999,0.82572973,242.21,242.18,1e-08]
[1758291079590,132.67,242.28,242.19,0.68]
[1758291079911,2.84092657,242.27,242.19,0.68]
[1758291081186,2.84092657,242.27,242.2,0.28432314]
[1758291081614,2.01539993,242.27,242.2,32.30432314]
[1758291081795,2.01539993,242.27,242.21,0.68]
[1758291082309,2.01539993,242.27,242.24,0.28432314]
[1758291082484,2.01539993,242.27,242.26,40.02207872]
[1758291082687,0.67,242.4,242.29,26.0]
[1758291082911,0.82515058,242.38,242.3,4.41141761]
[1758291083094,0.67,242.4,242.31,0.68]
[1758291083291,0.9251186,242.39,242.32,32.04]
[1758291083687,1.5951186,242.39,242.32,32.04]
[1758291084487,0.9251186,242.39,242.33,0.68]
[1758291085598,0.9251186,242.39,242.32,32.04]
[1758291085907,0.9251186,242.39,242.33,0.28432314]
[1758291086123,0.1,242.39,242.33,0.28432314]
[1758291086301,0.1,242.39,242.34,0.7]
[1758291086619,0.1,242.39,242.35,0.7]
[1758291087127,0.1,242.39,242.36,0.7]
[1758291087325,0.1,242.39,242.37,0.7]
[1758291087993,0.1,242.39,242.38,0.7]
[1758291088608,0.1,242.39,242.36,0.7]
[1758291089000,0.1,242.39,242.37,0.7]
[1758291089214,0.1,242.39,242.34,0.7]
[1758291089404,0.1,242.39,242.33,4.41081657]
[1758291089405,0.1,242.39,242.33,0.42648471]
[1758291089712,7.07053272,242.39,242.33,32.32432314]
[1758291089926,9.13332408,242.39,242.33,32.32432314]
[1758291090110,6.14541003,242.38,242.32,26.0]
[1758291090307,6.14541003,242.37,242.32,32.06]
[1758291090513,0.66,242.36,242.32,32.06]
[1758291091217,0.82523792,242.36,242.32,32.06]
[1758291091716,1.48523792,242.36,242.32,32.06]
[1758291091913,0.66,242.35,242.32,32.06]
[1758291092104,6.31064795,242.36,242.32,32.06]
[1758291092306,1.48523792,242.36,242.32,32.06]
[1758291093003,0.82523792,242.36,242.32,32.06]
[1758291093204,0.66,242.35,242.32,32.06]
[1758291093406,0.82523792,242.36,242.32,32.06]
[1758291093808,1.48523792,242.36,242.32,32.06]
[1758291094312,0.66,242.36,242.32,32.06]
[1758291094502,0.66,242.36,242.3,0.7]
[1758291094704,0.66,242.35,242.3,32.04]
[1758291094902,8.37355624,242.37,242.3,32.04]
[1758291095110,1.48518463,242.37,242.3,32.04]
[1758291096026,6.31059466,242.37,242.3,32.04]
[1758291096216,0.82525273,242.35,242.3,32.04]
[1758291096419,0.66,242.34,242.3,32.04]
[1758291096614,6.14541003,242.33,242.28,32.02]
[1758291096822,0.66,242.32,242.28,32.02]
[1758291097614,0.82542302,242.3,242.28,32.02]
[1758291098522,0.82542302,242.3,242.27,32.02]
[1758291098722,6.97076224,242.33,242.27,32.72]
[1758291098914,1.48535221,242.33,242.27,32.72]
[1758291099712,1.48535221,242.33,242.27,32.02]
[1758291100229,9.03406434,242.33,242.27,32.02]
[1758291100417,9.03406434,242.33,242.26,26.0]
[1758291100613,9.03406434,242.33,242.27,32.0]
[1758291100815,5.48541003,242.31,242.26,32.0]
[1758291101032,0.66,242.3,242.26,32.0]
[1758291101726,0.82545709,242.29,242.23,0.84216157]
[1758291101934,6.97086712,242.29,242.18,1e-08]
[1758291102110,6.97086712,242.29,242.22,26.0]
[1758291102111,9.03450986,242.29,242.22,26.0]
[1758291102320,2.88909983,242.29,242.22,26.0]
[1758291102519,2.88909983,242.29,242.23,0.7]
[1758291102915,3.54909983,242.29,242.22,26.0]
[1758291103123,1.48545709,242.29,242.22,26.7]
[1758291103423,17.72196397,242.35,242.23,0.98432314]
[1758291103424,3.54843222,242.35,242.23,0.98432314]
[1758291103730,2.88843222,242.35,242.25,4.41226872]
[1758291103925,2.88843222,242.35,242.26,0.7]
[1758291103926,0.66,242.34,242.26,0.7]
[1758291105232,0.66,242.34,242.27,0.28432314]
[1758291105416,6.31066309,242.35,242.28,0.7]
[1758291105417,0.82525306,242.35,242.28,0.7]
[1758291105731,132.66,242.37,242.28,0.7]
[1758291105732,133.48521543,242.37,242.29,32.0]
[1758291105931,0.1,242.39,242.3,0.98432314]
[1758291106145,0.1,242.39,242.32,26.0]
[1758291106346,0.1,242.39,242.33,27.12648471]
[1758291106515,0.1,242.39,242.34,32.74]
[1758291106935,0.1,242.39,242.35,0.7]
[1758291107137,0.1,242.39,242.35,0.28432314]
[1758291107314,1.58511947,242.39,242.34,32.04]
[1758291107509,1.58511947,242.39,242.35,32.04]
[1758291107713,0.92511947,242.39,242.35,32.04]
[1758291108517,1.58511947,242.39,242.35,32.04]
[1758291109937,0.92511947,242.39,242.35,32.04]
[1758291110139,0.92511947,242.39,242.35,32.74]
[1758291110520,0.1,242.39,242.36,0.98432314]
[1758291110722,0.1,242.39,242.37,0.7]
[1758291113610,0.1,242.39,242.38,0.7]
[1758291114008,0.1,242.39,242.36,0.28432314]
[1758291114250,0.1,242.39,242.37,0.7]
[1758291115317,0.92512901,242.39,242.37,32.02]
[1758291117238,0.1,242.39,242.37,32.02]
[1758291117945,0.92512947,242.39,242.37,32.02]
[1758291119416,1.64512947,242.39,242.33,0.28432314]
[1758291119618,0.92512947,242.39,242.34,32.0]
[1758291119939,1.64512947,242.39,242.34,32.0]
[1758291120123,1.64512947,242.39,242.35,0.68]
[1758291120124,0.1,242.39,242.35,0.68]
[1758291120328,0.1,242.39,242.36,0.68]
[1758291120642,0.1,242.39,242.37,0.68]
[1758291121021,0.1,242.39,242.38,31.98]
[1758291122558,0.1,242.39,242.38,32.0]
[1758291122760,0.92511654,242.39,242.38,32.0]
[1758291123166,1.64511654,242.39,242.38,32.0]
[1758291123462,1.64511654,242.39,242.35,0.28432314]
[1758291123644,0.92511654,242.39,242.33,0.68]
[1758291123842,0.72,242.38,242.34,31.98]
[1758291124043,0.72,242.38,242.35,31.98]
[1758291124660,2.9879079,242.39,242.35,31.98]
[1758291124859,3.7079079,242.39,242.35,31.98]
[1758291127441,1.64511654,242.39,242.35,31.98]
[1758291128446,0.92511654,242.39,242.35,31.98]
[1758291128961,0.72,242.38,242.35,31.98]
[1758291129377,8.47331793,242.39,242.31,0.68]
[1758291129538,0.72,242.37,242.32,31.94]
[1758291129975,0.72,242.36,242.3,0.68]
[1758291130143,3.10396382,242.36,242.3,26.0]
[1758291130471,3.10396382,242.36,242.31,31.96]
[1758291130848,0.72,242.35,242.29,26.0]
[1758291131150,0.72,242.34,242.29,31.96]
[1758291131345,2.38396382,242.35,242.29,32.64]
[1758291131745,3.60850374,242.34,242.29,31.96]
[1758291132054,0.72,242.33,242.29,31.96]
[1758291132450,2.88850374,242.34,242.29,31.96]
[1758291132662,2.88850374,242.34,242.24,0.68]
[1758291132663,3.10396382,242.33,242.24,0.68]
[1758291132859,3.10396382,242.33,242.25,57.96]
[1758291133067,3.10396382,242.32,242.25,26.0]
[1758291133419,0.72,242.31,242.26,31.96]
[1758291133549,3.10396382,242.3,242.25,31.96]
[1758291133742,3.60909983,242.29,242.25,31.96]
[1758291133939,3.10396382,242.28,242.18,2.43774186]
[1758291134256,3.10396382,242.28,242.19,32.64]
[1758291134460,3.10396382,242.28,242.2,0.68]
[1758291134881,3.10396382,242.28,242.2,0.96432314]
[1758291135872,3.60933834,242.27,242.2,0.96432314]
[1758291136848,0.82552524,242.27,242.21,0.68]
[1758291137882,0.82549116,242.28,242.21,0.68]
[1758291138201,132.0,242.31,242.25,0.28432314]
[1758291138202,132.82539059,242.31,242.25,0.28432314]
[1758291138403,132.82539059,242.31,242.26,32.64]
[1758291138689,133.54539059,242.31,242.26,31.96]
[1758291139084,132.82539059,242.31,242.27,0.68]
[1758291139480,132.82539059,242.31,242.26,31.96]
[1758291139683,0.72,242.3,242.24,26.0]